[Event "Mistrovství Čech mládeže 2023 - HD16"]
[Site "Harrachov, Czech Republic"]
[Date "2023.10.23"]
[Round "4.12"]
[White "Vyšinský, Otakar"]
[Black "Sochor, Antonín"]
[Result "1-0"]
[TimeControl "90m + 30s"]
[WhiteElo "1599"]
[BlackElo "1702"]

1. e4 {[%clk 01:30:52]} {[%emt 00:00:08]} d6 {[%clk 01:30:48]} {[%emt
00:00:12]} 2. d4 {[%clk 01:31:14]} {[%emt 00:00:07]} g6 {[%clk 01:31:07]}
{[%emt 00:00:11]} 3. Nc3 {[%clk 01:31:04]} {[%emt 00:00:41]} Bg7 {[%clk
01:31:27]} {[%emt 00:00:09]} 4. Be3 {[%clk 01:30:42]} {[%emt 00:00:52]} Nd7
{[%clk 01:31:44]} {[%emt 00:00:13]} 5. f3 {[%clk 01:30:25]} {[%emt 00:00:47]}
c6 {[%clk 01:31:58]} {[%emt 00:00:16]} 6. Qd2 {[%clk 01:29:21]} {[%emt
00:01:34]} a6 {[%clk 01:32:17]} {[%emt 00:00:11]} 7. Nh3 {[%clk 01:24:50]}
{[%emt 00:05:01]} b5 {[%clk 01:31:11]} {[%emt 00:01:36]} 8. d5 {[%clk
01:20:16]} {[%emt 00:05:04]} c5 {[%clk 01:31:20]} {[%emt 00:00:21]} 9. Nf2
{[%clk 01:18:06]} {[%emt 00:02:40]} Bb7 {[%clk 01:31:18]} {[%emt 00:00:28]} 10.
Be2 {[%clk 01:15:35]} {[%emt 00:03:04]} Rc8 {[%clk 01:30:50]} {[%emt 00:00:58]}
11. O-O {[%clk 01:14:52]} {[%emt 00:01:14]} Ngf6 {[%clk 01:29:27]} {[%emt
00:01:53]} 12. Bh6 {[%clk 01:14:07]} {[%emt 00:01:15]} O-O {[%clk 01:29:38]}
{[%emt 00:00:19]} 13. Ncd1 {[%clk 01:10:51]} {[%emt 00:03:46]} Ne5 {[%clk
01:28:19]} {[%emt 00:01:49]} 14. Bxg7 {[%clk 01:09:22]} {[%emt 00:02:00]} Kxg7
{[%clk 01:28:35]} {[%emt 00:00:14]} 15. f4 {[%clk 01:04:01]} {[%emt 00:05:50]}
Ned7 {[%clk 01:28:43]} {[%emt 00:00:22]} 16. c4 {[%clk 00:58:47]} {[%emt
00:05:45]} Qc7 {[%clk 01:28:23]} {[%emt 00:00:49]} 17. Ne3 {[%clk 00:57:41]}
{[%emt 00:01:37]} b4 {[%clk 01:27:56]} {[%emt 00:00:57]} 18. Rae1 {[%clk
00:53:16]} {[%emt 00:04:56]} e6 {[%clk 01:27:24]} {[%emt 00:01:01]} 19. b3
{[%clk 00:48:13]} {[%emt 00:05:33]} exd5 {[%clk 01:27:04]} {[%emt 00:00:50]} 20.
exd5 {[%clk 00:48:18]} {[%emt 00:00:26]} Rce8 {[%clk 01:27:15]} {[%emt
00:00:19]} 21. Bd3 {[%clk 00:45:17]} {[%emt 00:03:31]} Re7 {[%clk 01:25:28]}
{[%emt 00:02:16]} 22. Nf5+ {[%clk 00:44:43]} {[%emt 00:01:05]} gxf5 {[%clk
01:25:03]} {[%emt 00:00:54]} 23. Rxe7 {[%clk 00:44:57]} {[%emt 00:00:16]} Qd8
{[%clk 01:23:18]} {[%emt 00:02:16]} 24. Re3 {[%clk 00:42:59]} {[%emt 00:02:25]}
Kh8 {[%clk 01:23:19]} {[%emt 00:00:28]} 25. Bxf5 {[%clk 00:42:23]} {[%emt
00:01:08]} Rg8 {[%clk 01:23:03]} {[%emt 00:00:46]} 26. Qb2 {[%clk 00:41:56]}
{[%emt 00:00:59]} Bc8 {[%clk 01:22:58]} {[%emt 00:00:34]} 27. Ne4 {[%clk
00:39:37]} {[%emt 00:02:50]} Rg7 {[%clk 01:17:22]} {[%emt 00:06:06]} 28. Nxd6
{[%clk 00:37:37]} {[%emt 00:02:30]} Qf8 {[%clk 01:14:41]} {[%emt 00:03:07]} 29.
Nxc8 {[%clk 00:37:11]} {[%emt 00:01:00]} Qxc8 {[%clk 01:13:03]} {[%emt
00:02:07]} 30. Qxf6 {[%clk 00:36:58]} {[%emt 00:00:44]} Nxf6 {[%clk 01:13:05]}
{[%emt 00:00:27]} 31. Bxc8 {[%clk 00:37:21]} {[%emt 00:00:09]} Rg8 {[%clk
01:13:15]} {[%emt 00:00:19]} 32. Bf5 {[%clk 00:37:24]} {[%emt 00:00:27]} 1-0

[Event "Mistrovství Čech mládeže 2023 - HD16"]
[Site "Harrachov, Czech Republic"]
[Date "2023.10.23"]
[Round "4.13"]
[White "Mauder, Karel"]
[Black "Sadil, Antonín"]
[Result "0-1"]
[TimeControl "90m + 30s"]
[WhiteElo "1423"]
[BlackElo "1792"]

1. Nf3 {[%clk 01:30:41]} {[%emt 00:00:19]} d5 {[%clk 01:30:39]} {[%emt
00:00:21]} 2. g3 {[%clk 01:31:01]} {[%emt 00:00:10]} c5 {[%clk 01:30:58]}
{[%emt 00:00:11]} 3. Bg2 {[%clk 01:31:17]} {[%emt 00:00:14]} Nc6 {[%clk
01:31:15]} {[%emt 00:00:13]} 4. O-O {[%clk 01:31:40]} {[%emt 00:00:06]} e5
{[%clk 01:31:24]} {[%emt 00:00:22]} 5. d3 {[%clk 01:30:36]} {[%emt 00:01:34]}
Nf6 {[%clk 01:30:29]} {[%emt 00:01:25]} 6. Nbd2 {[%clk 01:30:03]} {[%emt
00:01:03]} Be7 {[%clk 01:30:10]} {[%emt 00:00:48]} 7. e4 {[%clk 01:30:06]}
{[%emt 00:00:27]} d4 {[%clk 01:30:10]} {[%emt 00:00:31]} 8. Nc4 {[%clk
01:29:54]} {[%emt 00:00:40]} Qc7 {[%clk 01:30:10]} {[%emt 00:00:31]} 9. a4
{[%clk 01:29:41]} {[%emt 00:00:43]} b6 {[%clk 01:28:00]} {[%emt 00:02:41]} 10.
Nh4 {[%clk 01:28:49]} {[%emt 00:01:20]} Be6 {[%clk 01:18:21]} {[%emt 00:10:10]}
11. b3 {[%clk 01:27:35]} {[%emt 00:01:43]} O-O {[%clk 01:14:07]} {[%emt
00:04:46]} 12. f4 {[%clk 01:27:19]} {[%emt 00:00:46]} Bg4 {[%clk 01:12:39]}
{[%emt 00:01:57]} 13. Nf3 {[%clk 01:24:18]} {[%emt 00:03:31]} Bxf3 {[%clk
01:09:12]} {[%emt 00:03:58]} 14. Qxf3 {[%clk 01:23:24]} {[%emt 00:01:22]} Nd7
{[%clk 01:05:00]} {[%emt 00:04:45]} 15. f5 {[%clk 01:14:43]} {[%emt 00:09:10]}
a6 {[%clk 01:03:02]} {[%emt 00:02:29]} 16. h4 {[%clk 01:03:16]} {[%emt
00:11:57]} b5 {[%clk 01:02:29]} {[%emt 00:01:03]} 17. Nb2 {[%clk 00:59:07]}
{[%emt 00:04:37]} Nb4 {[%clk 00:54:00]} {[%emt 00:09:00]} 18. Qe2 {[%clk
00:47:54]} {[%emt 00:11:43]} Rfc8 {[%clk 00:45:16]} {[%emt 00:09:14]} 19. h5
{[%clk 00:43:04]} {[%emt 00:05:20]} h6 {[%clk 00:43:06]} {[%emt 00:02:40]} 20.
Nd1 {[%clk 00:31:18]} {[%emt 00:12:16]} Qd8 {[%clk 00:40:45]} {[%emt 00:02:52]}
21. c3 {[%clk 00:27:31]} {[%emt 00:04:17]} Nc6 {[%clk 00:38:59]} {[%emt
00:02:15]} 22. c4 {[%clk 00:26:01]} {[%emt 00:02:00]} bxc4 {[%clk 00:33:58]}
{[%emt 00:05:31]} 23. bxc4 {[%clk 00:26:27]} {[%emt 00:00:04]} Bg5 {[%clk
00:32:45]} {[%emt 00:01:42]} 24. Nf2 {[%clk 00:25:33]} {[%emt 00:01:24]} Rcb8
{[%clk 00:30:45]} {[%emt 00:02:29]} 25. Nh3 {[%clk 00:23:44]} {[%emt 00:02:16]}
Bxc1 {[%clk 00:30:51]} {[%emt 00:00:28]} 26. Rfxc1 {[%clk 00:24:13]} Rb3 {[%clk
00:27:22]} {[%emt 00:03:58]} 27. Rab1 {[%clk 00:21:13]} {[%emt 00:03:30]} Rab8
{[%clk 00:27:35]} {[%emt 00:00:18]} 28. Rxb3 {[%clk 00:21:39]} {[%emt
00:00:03]} Rxb3 {[%clk 00:27:54]} {[%emt 00:00:12]} 29. Rc2 {[%clk 00:20:19]}
{[%emt 00:01:50]} Qb8 {[%clk 00:23:27]} {[%emt 00:04:56]} 30. g4 {[%clk
00:20:10]} {[%emt 00:00:38]} f6 {[%clk 00:22:35]} {[%emt 00:01:23]} 31. Bf1
{[%clk 00:18:59]} {[%emt 00:01:41]} Qb4 {[%clk 00:19:09]} {[%emt 00:03:56]} 32.
Ra2 {[%clk 00:18:47]} {[%emt 00:00:43]} Nb6 {[%clk 00:18:55]} {[%emt 00:00:45]}
33. Qg2 {[%clk 00:18:41]} {[%emt 00:00:35]} Nxa4 {[%clk 00:13:30]} {[%emt
00:05:56]} 34. g5 {[%clk 00:18:55]} {[%emt 00:00:15]} hxg5 {[%clk 00:13:46]}
{[%emt 00:00:15]} 35. Nxg5 {[%clk 00:19:22]} {[%emt 00:00:03]} Rb2 {[%clk
00:11:59]} {[%emt 00:02:17]} 36. Rxb2 {[%clk 00:18:54]} {[%emt 00:00:58]} Qxb2
{[%clk 00:12:27]} {[%emt 00:00:02]} 37. Qxb2 {[%clk 00:17:24]} {[%emt
00:01:59]} Nxb2 {[%clk 00:12:31]} {[%emt 00:00:26]} 38. Ne6 {[%clk 00:17:38]}
{[%emt 00:00:16]} Na4 {[%clk 00:12:15]} {[%emt 00:00:47]} 39. Be2 {[%clk
00:17:13]} {[%emt 00:00:55]} Nb4 {[%clk 00:11:22]} {[%emt 00:01:23]} 40. Kf2
{[%clk 00:16:04]} {[%emt 00:01:38]} a5 {[%clk 00:10:23]} {[%emt 00:01:29]} 41.
Ke1 {[%clk 00:16:14]} {[%emt 00:00:20]} Na6 {[%clk 00:10:06]} {[%emt 00:00:48]}
42. Kd2 {[%clk 00:15:33]} {[%emt 00:01:10]} Nc3 {[%clk 00:09:46]} {[%emt
00:00:50]} 43. Bf3 {[%clk 00:13:33]} {[%emt 00:02:30]} a4 {[%clk 00:08:46]}
{[%emt 00:01:30]} 44. Kc1 {[%clk 00:12:54]} {[%emt 00:01:09]} a3 {[%clk
00:08:07]} {[%emt 00:01:09]} 45. Bg2 {[%clk 00:12:56]} {[%emt 00:00:27]} Ne2+
{[%clk 00:06:55]} {[%emt 00:01:42]} 46. Kb1 {[%clk 00:12:42]} {[%emt 00:00:44]}
Nf4 {[%clk 00:05:11]} {[%emt 00:02:15]} 47. Nxf4 {[%clk 00:09:02]} {[%emt
00:04:10]} exf4 {[%clk 00:05:38]} {[%emt 00:00:03]} 48. Ka2 {[%clk 00:09:15]}
{[%emt 00:00:17]} Nb4+ {[%clk 00:05:56]} {[%emt 00:00:13]} 49. Kxa3 {[%clk
00:09:35]} {[%emt 00:00:08]} Nxd3 {[%clk 00:06:16]} {[%emt 00:00:11]} 50. Ka4
{[%clk 00:09:22]} {[%emt 00:00:43]} Ne1 {[%clk 00:05:29]} {[%emt 00:01:17]} 51.
Bf1 {[%clk 00:08:38]} {[%emt 00:01:13]} d3 {[%clk 00:05:40]} {[%emt 00:00:19]}
0-1

[Event "Mistrovství Čech mládeže 2023 - HD16"]
[Site "Harrachov, Czech Republic"]
[Date "2023.10.23"]
[Round "4.14"]
[White "Garabik, Marek"]
[Black "Bárta, David"]
[Result "1-0"]
[TimeControl "90m + 30s"]
[WhiteElo "1697"]
[BlackElo "1558"]

1. e4 {[%clk 01:30:51]} {[%emt 00:00:08]} e5 {[%clk 01:30:00]} {[%emt
00:01:01]} 2. Nf3 {[%clk 01:30:59]} {[%emt 00:00:22]} Nf6 {[%clk 01:22:49]}
{[%emt 00:07:40]} 3. Nxe5 {[%clk 01:30:28]} {[%emt 00:01:00]} Nc6 {[%clk
01:20:10]} {[%emt 00:03:10]} 4. Nxc6 {[%clk 01:29:41]} {[%emt 00:01:17]} dxc6
{[%clk 01:20:38]} {[%emt 00:00:02]} 5. d3 {[%clk 01:27:14]} {[%emt 00:02:56]}
Bc5 {[%clk 01:19:56]} {[%emt 00:01:13]} 6. Be2 {[%clk 01:25:52]} {[%emt
00:01:52]} O-O {[%clk 01:18:27]} {[%emt 00:01:59]} 7. c3 {[%clk 01:16:03]}
{[%emt 00:10:19]} Qe7 {[%clk 01:10:38]} {[%emt 00:08:18]} 8. Bg5 {[%clk
01:11:56]} {[%emt 00:04:37]} h6 {[%clk 01:03:58]} {[%emt 00:07:11]} 9. Bxf6
{[%clk 01:11:17]} {[%emt 00:01:09]} Qxf6 {[%clk 01:03:57]} {[%emt 00:00:30]} 10.
d4 {[%clk 01:11:40]} {[%emt 00:00:07]} Bb6 {[%clk 00:55:52]} {[%emt 00:08:35]}
11. Nd2 {[%clk 01:05:14]} {[%emt 00:06:56]} Qg6 {[%clk 00:40:51]} {[%emt
00:15:30]} 12. Bf3 {[%clk 01:04:01]} {[%emt 00:01:43]} f5 {[%clk 00:24:09]}
{[%emt 00:17:13]} 13. O-O {[%clk 00:54:29]} {[%emt 00:10:01]} fxe4 {[%clk
00:16:20]} {[%emt 00:08:20]} 14. Bxe4 {[%clk 00:53:37]} {[%emt 00:01:22]} Bf5
{[%clk 00:15:54]} {[%emt 00:00:56]} 15. Qc2 {[%clk 00:52:01]} {[%emt 00:02:06]}
c5 {[%clk 00:10:30]} {[%emt 00:05:53]} 16. Bxf5 {[%clk 00:49:39]} {[%emt
00:02:51]} Qxf5 {[%clk 00:10:20]} {[%emt 00:00:40]} 17. Qxf5 {[%clk 00:49:41]}
{[%emt 00:00:28]} Rxf5 {[%clk 00:10:48]} {[%emt 00:00:02]} 18. dxc5 {[%clk
00:43:57]} {[%emt 00:06:14]} Rxc5 {[%clk 00:08:03]} {[%emt 00:03:15]} 19. Nf3
{[%clk 00:39:46]} {[%emt 00:04:41]} Rd8 {[%clk 00:06:09]} {[%emt 00:02:24]} 20.
Rad1 {[%clk 00:39:52]} {[%emt 00:00:23]} Rcd5 {[%clk 00:05:40]} {[%emt
00:00:59]} 21. Rxd5 {[%clk 00:40:09]} {[%emt 00:00:13]} Rxd5 {[%clk 00:06:09]}
{[%emt 00:00:02]} 22. Re1 {[%clk 00:40:35]} {[%emt 00:00:03]} Kh7 {[%clk
00:03:46]} {[%emt 00:02:54]} 23. b4 {[%clk 00:35:51]} {[%emt 00:05:14]} c6
{[%clk 00:02:41]} {[%emt 00:01:34]} 24. c4 {[%clk 00:34:11]} {[%emt 00:02:11]}
Rd7 {[%clk 00:02:44]} {[%emt 00:00:27]} 25. Kf1 {[%clk 00:33:28]} {[%emt
00:01:12]} Bd8 {[%clk 00:02:02]} {[%emt 00:01:12]} 26. Re8 {[%clk 00:32:04]}
{[%emt 00:01:54]} Bf6 {[%clk 00:02:15]} {[%emt 00:00:18]} 27. Ke2 {[%clk
00:31:15]} {[%emt 00:01:19]} Re7+ {[%clk 00:01:43]} {[%emt 00:01:02]} 28. Rxe7
{[%clk 00:31:44]} {[%emt 00:00:01]} Bxe7 {[%clk 00:02:06]} {[%emt 00:00:07]} 29.
b5 {[%clk 00:31:48]} {[%emt 00:00:25]} c5 {[%clk 00:01:38]} {[%emt 00:00:58]}
30. Ne5 {[%clk 00:30:49]} {[%emt 00:01:29]} Bd6 {[%clk 00:01:58]} {[%emt
00:00:10]} 31. Nf3 {[%clk 00:30:53]} {[%emt 00:00:26]} Kg6 {[%clk 00:02:00]}
{[%emt 00:00:29]} 32. Ke3 {[%clk 00:30:46]} {[%emt 00:00:37]} Kf5 {[%clk
00:00:55]} {[%emt 00:01:35]} 33. h3 {[%clk 00:31:01]} {[%emt 00:00:15]} Bf4+
{[%clk 00:00:57]} {[%emt 00:00:28]} 34. Kd3 {[%clk 00:31:02]} {[%emt 00:00:29]}
h5 {[%clk 00:00:51]} {[%emt 00:00:36]} 35. Nh4+ {[%clk 00:29:58]} {[%emt
00:01:34]} Kf6 {[%clk 00:01:12]} {[%emt 00:00:09]} 36. Ke4 {[%clk 00:30:00]}
{[%emt 00:00:28]} g5 {[%clk 00:00:40]} {[%emt 00:01:02]} 37. Nf5 {[%clk
00:28:58]} {[%emt 00:01:32]} Bd2 {[%clk 00:00:38]} {[%emt 00:00:33]} 38. Nd6
{[%clk 00:29:08]} {[%emt 00:00:20]} b6 {[%clk 00:00:39]} {[%emt 00:00:29]} 39.
Nc8 {[%clk 00:28:51]} {[%emt 00:00:46]} Be1 {[%clk 00:00:37]} {[%emt 00:00:32]}
40. f3 {[%clk 00:27:33]} {[%emt 00:01:48]} Bg3 {[%clk 00:00:40]} {[%emt
00:00:27]} 41. Nxa7 {[%clk 00:28:01]} {[%emt 00:00:02]} Ke6 {[%clk 00:00:48]}
{[%emt 00:00:22]} 42. Nc6 {[%clk 00:28:03]} {[%emt 00:00:28]} Kf6 {[%clk
00:00:40]} {[%emt 00:00:39]} 43. a3 {[%clk 00:26:10]} {[%emt 00:02:24]} h4
{[%clk 00:00:42]} {[%emt 00:00:27]} 44. Kd5 {[%clk 00:24:37]} {[%emt 00:02:03]}
Bc7 {[%clk 00:00:49]} {[%emt 00:00:23]} 45. a4 {[%clk 00:16:08]} {[%emt
00:08:59]} Kf5 {[%clk 00:00:59]} {[%emt 00:00:19]} 46. a5 {[%clk 00:16:11]}
{[%emt 00:00:27]} bxa5 {[%clk 00:01:11]} {[%emt 00:00:19]} 47. Kxc5 {[%clk
00:16:40]} Kf4 {[%clk 00:00:44]} {[%emt 00:00:57]} 48. b6 {[%clk 00:17:09]}
{[%emt 00:00:02]} Bxb6+ {[%clk 00:00:51]} {[%emt 00:00:23]} 49. Kxb6 {[%clk
00:17:18]} {[%emt 00:00:21]} Kg3 {[%clk 00:00:57]} {[%emt 00:00:23]} 50. Kxa5
{[%clk 00:16:56]} {[%emt 00:00:53]} Kxg2 {[%clk 00:01:20]} {[%emt 00:00:07]} 51.
Ne5 {[%clk 00:17:24]} {[%emt 00:00:01]} Kxh3 {[%clk 00:01:14]} {[%emt
00:00:37]} 52. c5 {[%clk 00:16:19]} {[%emt 00:01:35]} Kg3 {[%clk 00:01:18]}
{[%emt 00:00:25]} 53. c6 {[%clk 00:11:16]} {[%emt 00:05:34]} h3 {[%clk
00:01:45]} {[%emt 00:00:03]} 54. Ng4 {[%clk 00:11:45]} {[%emt 00:00:02]} Kxf3
{[%clk 00:01:52]} {[%emt 00:00:24]} 55. c7 {[%clk 00:09:20]} {[%emt 00:02:55]}
Kxg4 {[%clk 00:02:19]} {[%emt 00:00:02]} 56. c8=Q+ {[%clk 00:09:49]} {[%emt
00:00:01]} Kg3 {[%clk 00:01:52]} {[%emt 00:00:56]} 57. Qc3+ {[%clk 00:09:54]}
{[%emt 00:00:25]} Kg2 {[%clk 00:02:04]} {[%emt 00:00:18]} 58. Qd2+ {[%clk
00:09:56]} {[%emt 00:00:28]} Kh1 {[%clk 00:00:46]} {[%emt 00:01:49]} 59. Qe1+
{[%clk 00:09:54]} {[%emt 00:00:32]} Kg2 {[%clk 00:00:58]} {[%emt 00:00:18]} 60.
Qe4+ {[%clk 00:09:29]} {[%emt 00:00:55]} Kg1 {[%clk 00:00:49]} {[%emt
00:00:39]} 61. Qe3+ {[%clk 00:09:04]} {[%emt 00:00:55]} Kh2 {[%clk 00:01:09]}
{[%emt 00:00:08]} 62. Qf3 {[%clk 00:09:25]} {[%emt 00:00:09]} Kg1 {[%clk
00:00:59]} {[%emt 00:00:41]} 63. Qxh3 {[%clk 00:09:52]} {[%emt 00:00:04]} g4
{[%clk 00:01:18]} {[%emt 00:00:11]} 64. Qxg4+ {[%clk 00:10:17]} {[%emt
00:00:05]} 1-0

[Event "Mistrovství Čech mládeže 2023 - HD16"]
[Site "Harrachov, Czech Republic"]
[Date "2023.10.23"]
[Round "4.15"]
[White "Barták, Josef"]
[Black "Langmaier, Michal"]
[Result "1-0"]
[TimeControl "90m + 30s"]
[WhiteElo "1476"]
[BlackElo "1697"]

1. e4 {[%clk 01:30:56]} {[%emt 00:00:03]} c5 {[%clk 01:30:55]} {[%emt
00:00:05]} 2. Nc3 {[%clk 01:31:17]} {[%emt 00:00:09]} a6 {[%clk 01:31:17]}
{[%emt 00:00:08]} 3. g3 {[%clk 01:29:37]} {[%emt 00:02:10]} b5 {[%clk
01:30:55]} {[%emt 00:00:52]} 4. Bg2 {[%clk 01:29:30]} {[%emt 00:00:36]} Bb7
{[%clk 01:30:51]} {[%emt 00:00:35]} 5. d3 {[%clk 01:29:25]} {[%emt 00:00:35]}
Nf6 {[%clk 01:30:26]} {[%emt 00:00:55]} 6. Nge2 {[%clk 01:26:08]} {[%emt
00:03:47]} e6 {[%clk 01:29:19]} {[%emt 00:01:37]} 7. Nf4 {[%clk 01:22:59]}
{[%emt 00:03:39]} d6 {[%clk 01:15:01]} {[%emt 00:14:48]} 8. O-O {[%clk
01:18:51]} {[%emt 00:04:37]} Nc6 {[%clk 01:13:47]} {[%emt 00:01:44]} 9. Nh3
{[%clk 01:02:04]} {[%emt 00:17:16]} Be7 {[%clk 01:04:54]} {[%emt 00:09:23]} 10.
f4 {[%clk 01:01:05]} {[%emt 00:01:29]} Qb6 {[%clk 00:54:38]} {[%emt 00:10:45]}
11. f5 {[%clk 00:52:51]} {[%emt 00:08:44]} c4+ {[%clk 00:46:07]} {[%emt
00:09:01]} 12. Kh1 {[%clk 00:51:34]} {[%emt 00:01:46]} cxd3 {[%clk 00:45:34]}
{[%emt 00:01:03]} 13. fxe6 {[%clk 00:50:55]} {[%emt 00:01:09]} fxe6 {[%clk
00:45:09]} {[%emt 00:00:55]} 14. Qxd3 {[%clk 00:50:31]} {[%emt 00:00:55]} Ne5
{[%clk 00:44:20]} {[%emt 00:01:19]} 15. Qe2 {[%clk 00:49:13]} {[%emt 00:01:48]}
b4 {[%clk 00:34:01]} {[%emt 00:10:50]} 16. Nd1 {[%clk 00:44:23]} {[%emt
00:05:20]} a5 {[%clk 00:30:19]} {[%emt 00:04:12]} 17. Re1 {[%clk 00:37:29]}
{[%emt 00:07:23]} Ba6 {[%clk 00:28:35]} {[%emt 00:02:14]} 18. Qf2 {[%clk
00:27:37]} {[%emt 00:10:21]} Qxf2 {[%clk 00:28:10]} {[%emt 00:00:55]} 19. Nhxf2
{[%clk 00:24:53]} {[%emt 00:03:14]} Kf7 {[%clk 00:24:09]} {[%emt 00:04:31]} 20.
Ne3 {[%clk 00:21:22]} {[%emt 00:04:01]} Rac8 {[%clk 00:23:48]} {[%emt
00:00:51]} 21. Bd2 {[%clk 00:21:06]} {[%emt 00:00:47]} Bd8 {[%clk 00:15:35]}
{[%emt 00:08:43]} 22. a3 {[%clk 00:16:46]} {[%emt 00:04:51]} b3 {[%clk
00:13:47]} {[%emt 00:02:18]} 23. cxb3 {[%clk 00:16:19]} {[%emt 00:00:58]} Bb6
{[%clk 00:13:50]} {[%emt 00:00:26]} 24. Rac1 {[%clk 00:14:10]} {[%emt
00:02:38]} Rhd8 {[%clk 00:10:07]} {[%emt 00:04:13]} 25. Bc3 {[%clk 00:12:26]}
{[%emt 00:02:15]} Nfd7 {[%clk 00:06:51]} {[%emt 00:03:45]} 26. Bf1 {[%clk
00:07:51]} {[%emt 00:05:05]} Bxf1 {[%clk 00:04:31]} {[%emt 00:02:50]} 27. Rxf1
{[%clk 00:08:03]} {[%emt 00:00:18]} Ke7 {[%clk 00:04:55]} {[%emt 00:00:06]} 28.
Nfg4 {[%clk 00:07:42]} {[%emt 00:00:51]} Nd3 {[%clk 00:02:40]} {[%emt
00:02:45]} 29. Rcd1 {[%emt 00:00:27]} N3c5 30. Nc4 {[%clk 00:02:14]} {[%emt
00:06:10]} Nxe4 {[%clk 00:01:17]} {[%emt 00:02:14]} 31. Nxb6 {[%clk 00:02:08]}
{[%emt 00:00:36]} Nxb6 {[%clk 00:01:41]} {[%emt 00:00:06]} 32. Bxa5 {[%clk
00:02:30]} {[%emt 00:00:08]} Rc6 {[%clk 00:01:12]} {[%emt 00:00:59]} 33. Rf4
{[%clk 00:01:04]} {[%emt 00:01:56]} Nc5 {[%clk 00:00:41]} {[%emt 00:01:00]} 34.
b4 {[%clk 00:00:51]} {[%emt 00:00:44]} Ncd7 {[%clk 00:00:55]} {[%emt 00:00:17]}
35. Rdf1 {[%clk 00:00:54]} {[%emt 00:00:27]} Rdc8 {[%clk 00:00:32]} {[%emt
00:00:53]} 36. Rf7+ {[%clk 00:00:48]} {[%emt 00:00:36]} Ke8 {[%clk 00:00:33]}
{[%emt 00:00:29]} 37. Rxg7 {[%clk 00:00:50]} {[%emt 00:00:28]} Nd5 {[%clk
00:00:43]} {[%emt 00:00:19]} 38. Rxh7 {[%clk 00:00:36]} {[%emt 00:00:45]} Rc1
{[%clk 00:00:35]} {[%emt 00:00:38]} 39. Rh8+ {[%clk 00:00:55]} {[%emt
00:00:11]} Ke7 {[%clk 00:01:00]} {[%emt 00:00:05]} 40. Bd8+ {[%clk 00:01:19]}
{[%emt 00:00:06]} Rxd8 {[%clk 00:01:22]} {[%emt 00:00:08]} 41. Rh7+ {[%clk
00:01:40]} {[%emt 00:00:09]} 1-0